{"text_format":"1","workbook":"xlsx","n_sheets":22,"sheets":["Application Information","Definitions","Racial Equity Statement","Table of Contents","Threshold Requirements ","Applicant Info","Eligibility","Proj Description","Proj Info (A)","Proj Info (B)","Proj Info (C)","Proj Info (D)","Proj Info (E)"," Needs Analysis","Proposed Goals","Project Budget","Budget Summary","Capacity and Experience","Certification","Project Budget SS","Project Budget TBRA","Factors."],"not_rendered":{"charts":0,"images":2,"macros":1,"external_links":0,"defined_names":35,"comments":1,"pivot_tables":0},"unopened":[],"bounds":{"document_bytes":16777216,"sheet_cells":100000,"rows_first":2000,"rows_last":500,"rows_between":2000,"halvings":0,"cell_chars":16384,"cell_head_chars":4096},"cells_cut":0,"cells_raw":0,"read":"whole","date_system":"1900"}

{"sheet":"Application Information","index":0,"n_rows":99,"n_cols":10,"rows_kept":99,"cut":false,"hidden":false,"merged":[[98,3,98,5],[27,2,27,11],[30,5,30,7],[31,5,31,7],[31,9,38,9],[32,5,32,7],[33,5,33,7],[34,5,34,7],[35,5,35,7],[36,5,36,7],[38,5,38,7],[39,5,39,7],[42,2,42,11],[43,2,43,11],[44,2,44,11],[45,2,45,11],[26,2,26,10],[11,3,11,7],[11,8,11,9],[14,2,14,11],[15,2,15,11],[16,2,16,11],[18,2,18,11],[19,2,19,11],[21,2,21,11],[22,2,22,11],[23,2,23,11],[25,2,25,11],[3,2,3,11],[4,2,4,11],[6,2,6,11],[9,2,9,11],[10,3,10,7],[10,8,10,9]]}
[]
[]
[]
[null,null,"MISSISSIPPI HOME CORPORATION"]
[null,null,"HOME-ARP APPLICATION"]
[]
[null,null,"Supportive Services (SS) and Tenant-Based Rental Assistance (TBRA)"]
[]
[null,null,"APPLICATION CYCLE"]
[null,null,"Applications for the HOME-ARP Supportive Service (SS) and TBRA Programs will be accepted during the application cycle stated below.  Applications will only be accepted during the designated dates and time.  There will not be any exceptions for late applications."]
[null,null,null,"Application Submission Open Date:",null,null,null,null,"2024-02-15"]
[null,null,null,"Application Submission Close Date:",null,null,null,null,"2024-04-01"]
[null,null,null,null,null,null,null,null,"At 4:00 pm"]
[null,null,"APPLICATION PACKAGE"]
[null,null,"An electronic version of this Excel application and a hard PDF copy of this application, along with a signed certification page and required attachments, must be submitted through email to tamara.stewart@mshc.com and copy to latoya.hogan@mshc.com and via mail to MHC.  A hard copy of the HOME-ARP SS & TBRA application is required.\n"]
[null,null,"If your application is too large to submit electronically, consider sending the packet as an electronic compressed zipped folder. "]
[null,null,"All documents must be submitted in the order listed in the Table of Contents.  Failure to submit the Application Package properly may result in a deduction of points.  Incomplete or late applications will not be considered for funding."]
[null,null,"APPLICATION INSTRUCTIONS"]
[null,null,"_________________________________________________________________________________________"]
[null,null,"This HOME-ARP application is arranged based on eligible activities.\nAgencies applying for Supportive Service funding ONLY must complete all sections except the \"TBRA\" program tab. Agencies applying for TBRA and Supportive Services must complete all sections of this application. Agencies applying for TBRA only must also complete the supportive Service Sections and describe partnerships that can provide supportive services.  \n\nThe HOME-ARP application for TBRA and Supportive Services is a one-time application that can be renewed annually by awarded agencies until September 30, 2029, based on their previous year's performance and funding availability. Additionally, funds not expended during the first contract term may move forward to the next grant year.\n\nHOME-ARP Supportive Services:\n$5,714,149\n\nThe anticipated annual award amount for Supportive Services is $952,358.17\n\nHOME-ARP Tenant Based Rental Assistance:\n$7,714,100\n\nThe anticipated annual award amount for TBRA is $1,285,683.33\n\nFunding Availability and Funding Caps\nWhen applying for HOME-ARP funding, agencies can request between $75,000 and $300,000 for Supportive Services and $100,000 to $500,000 for Tenant Base Rental Assistance. However, it is important to note that the caps do not ensure that your agency will receive the exact amount requested. The final amount awarded depends on the available funds and the number of agencies receiving funding, and the agencies’ financial capacity. As a result, it is possible for agencies to receive less than $75,000 in their contract award."]
[null,null,"APPLICATION SUBMISSION"]
[null,null,"All applications are considered final at the time they are received.  Additional information cannot be submitted unless specifically requested by MHC."]
[null,null,"Hard Copy Applications must be sent to:"]
[null,null,"        Tamara Stewart, AVP Grant Management \n        Mississippi Home Corporation, (HOME-ARP SS & TBRA)\n        735 Riverside Dr.\n        Jackson, MS 39202"]
[]
[null,null,"Electronic Applications must be emailed to:"]
[null,null,"Email: tamara.stewart@mshc.com and latoya.hogan@mshc.com"]
[null,null,"Email Subject: \"HOME-ARP SS & TBRA\""]
[]
[null,null,"SCORING CRITERIA"]
[null,null,null,null,null,"Factors ",null,null,"Max Score"]
[null,null,null,null,null,"Capacity and Experience",null,null,15,"HOME-ARP applicants’ minimum points ="]
[null,null,null,null,null,"Need or Extent of Problem",null,null,15]
[null,null,null,null,null,"Collaboration Partnership",null,null,10]
[null,null,null,null,null,"Reporting Ability",null,null,5]
[null,null,null,null,null,"Program Plan and Narratives",null,null,30]
[null,null,null,null,null,"Program Goals",null,null,10]
[null,null,null,null,null,"Sound Budget",null,null,7]
[null,null,null,null,null,"Financial Controls",null,null,8]
[null,null,null,null,null,"Total",null,null,{"$f":"SUM(I32:I39)","v":100},75]
[]
[null,null,"TECHNICAL ASSISTANCE"]
[null,null,"If you need assistance during the application cycle, please contact:"]
[null,null,"Tamara Stewart at (601) 718-4654 / tamara.stewart@mshc.com or"]
[null,null,"Latoya Hogan at 601-718-4676/ latoya.hogan@mshc.com"]
[]
[]
[]
[]
[]
[]
[]
[]
[]
[]
[]
[]
[]
[]
[]
[]
[]
[]
[]
[]
[]
[]
[]
[]
[]
[]
[]
[]
[]
[]
[]
[]
[]
[]
[]
[]
[]
[]
[null,null,null,"Smead® Pressboard Fastener Folders With SafeSHIELD® Fasteners, 3\" Expansion, Legal Size, 60% Recycled, Gray/Green, Box Of 25 Item # 935783"]
[]
[]
[]
[]
[]
[]
[]
[]
[]
[]
[]
[]
[]
[]
[null,null,null,"<GO BACK>"]

{"sheet":"Definitions","index":1,"n_rows":13,"n_cols":7,"rows_kept":13,"cut":false,"hidden":false,"merged":[[13,3,13,13],[2,2,2,13],[3,2,3,13],[5,2,5,13],[7,2,7,12],[8,2,8,5],[8,6,10,13]]}
[]
[]
[null,null,"HOME-ARP PROGRAM"]
[null,null,"Supportive Services (SS) and Tenant-Based Rental Assistance (TBRA) "]
[]
[null,null,"Definitions"]
[]
[]
[null,null,"Qualifying Population (QP)",null,null,null,"Homeless, as defined in section 103(a) of the McKinney-Vento Homeless Assistance Act (42 U.S.C. 11302(a));\n\nAt-risk of homelessness, as defined in section 401(1) of the McKinney-Vento Homeless Assistance Act (42 U.S.C. 11360(1));\n\nFleeing, or attempting to flee, domestic violence, dating violence, sexual assault, stalking, or human trafficking, as defined by the Secretary;\n\nIn other populations where providing supportive services or assistance under section 212(a) of the Act (42 U.S.C. 12742(a)) would prevent the family’s homelessness or would serve those with the greatest risk of housing instability (reentry, homeless youth);\n\nVeterans and families that include a veteran family member that meet one of the preceding criteria."]
[]
[]
[null,null,"Tenant Based Rental Assistance (TBRA)",null,null,null,"Rental subsidy program."]
[null,null,"Supportive Services (SS)",null,null,null,"A variety of services that promote housing stability as defined in CPD-21-10."]

{"sheet":"Racial Equity Statement","index":2,"n_rows":81,"n_cols":4,"rows_kept":81,"cut":false,"hidden":false,"merged":[[26,2,26,11],[27,2,27,11],[80,3,80,5],[18,2,18,10],[19,2,19,11],[20,2,20,11],[21,2,21,11],[24,2,24,11],[25,2,25,11],[17,2,17,11],[3,2,3,12],[4,2,4,12],[6,2,6,12],[8,2,13,12],[16,2,16,11]]}
[]
[]
[]
[null,null,"HOME-ARP PROGRAM"]
[null,null,"Supportive Services (SS) and Tenant-Based Rental Assistance (TBRA) "]
[null,"III.   RACIAL EQUITY STATEMENT"]
[null,null,"Advancing Racial Equity and Inclusion Statement"]
[]
[null,null,"MHC directs that grantees should prioritize the advancement of racial equity and inclusion at all levels of the homeless response system. Subrecipients should provide for and improve access to services,  services provision, and outcomes among disproportionately underrepresented populations. Subrecipients cannot simply rely on delivering a standardized set of services to address equity and inclusion. Subrecipients are responsible for examining their data, ensuring all eligible persons are receiving equitable supportive services with dignity, respect, and compassion regardless of their circumstances, abilities, or identity. Subrecipients must respond to disproportionality in access to services, service provision and outcomes and should seek to the voices of disproportionately impacted communities and those with lived experience of homelessness are centered in a meaningful, sustained way in creating effective approaches to reducing and ending homelessness. "]
[]
[]
[]
[]
[]
[]
[]
[]
[]
[]
[]
[]
[]
[]
[]
[]
[]
[]
[]
[]
[]
[]
[]
[]
[]
[]
[]
[]
[]
[]
[]
[]
[]
[]
[]
[]
[]
[]
[]
[]
[]
[]
[]
[]
[]
[]
[]
[]
[]
[]
[]
[]
[]
[]
[]
[]
[null,null,null,"Smead® Pressboard Fastener Folders With SafeSHIELD® Fasteners, 3\" Expansion, Legal Size, 60% Recycled, Gray/Green, Box Of 25 Item # 935783"]
[]
[]
[]
[]
[]
[]
[]
[]
[]
[]
[]
[]
[]
[]
[null,null,null,"<GO BACK>"]

{"sheet":"Table of Contents","index":3,"n_rows":67,"n_cols":11,"rows_kept":67,"cut":false,"hidden":false,"merged":[[66,5,66,12],[24,5,24,13],[41,5,41,13],[58,5,58,12],[60,5,60,12],[62,5,62,12],[64,5,64,12],[18,5,20,12],[3,2,3,12],[4,2,4,12],[6,2,6,12],[8,2,8,12],[10,2,10,12]]}
[]
[]
[]
[null,null,"HOME-ARP PROGRAM"]
[null,null,"Supportive Services (SS) and Tenant-Based Rental Assistance (TBRA) "]
[]
[null,null,"TABLE OF CONTENTS & REQUIRED ATTACHMENTS"]
[]
[null,null,"The following documents must be submitted with the application.  All items indexed must be tabbed and numbered accordingly.  "]
[]
[]
[]
[null,null,"APPLICANT:"]
[]
[null,null,"I.","General Information"]
[]
[null,null,null,null,"1.","Cover Letter"]
[]
[null,null,null,null,"2.","Executed Application- The application consist of the completion of this entire Excel Workbook and submission of required attachments "]
[]
[]
[]
[]
[null,null,null,null,"3.","Policy and Procedures Manual (if returning applicant with updated policies)"]
[null,null,null,null,null,"* If awarded, new applicants must submit their policies within 30 days of the implementation workshop. "]
[null,null,"II.","Organization Documents"]
[]
[null,null,null,null,"1.","Articles of Incorporation"]
[]
[null,null,null,null,"2.","Bylaws and/or constitution"]
[]
[null,null,null,null,"3.","Certificate of Good Standing from Mississippi Secretary of State",null,null,null,null,"Available online"]
[]
[null,null,null,null,"4.","IRS 501(c)(3) Status Letter"]
[]
[null,null,null,null,"5.","Organization Chart (identify saff/volunteers/board who represent the population)"]
[]
[null,null,null,null,"6.","List of Board Members (include name, title, city and state of residence, occupation, email address)"]
[]
[null,null,null,null,"7.","Key Staff Resumes"]
[null,null,null,null,"8.","Verification of Drug-Free Workplace Certification 24 CFR 576.407(a)"]
[]
[null,null,"III.","Threshold Factors"]
[]
[null,null,null,null,"1.","See \"Threshold\" tab for threshold requirements "]
[null,null,null,null,"2.","Enviromental Review application identifying each ARP housing related activity (email verification is acceptable)"]
[null,null,"IV.","Scoring Factors Documentation"]
[]
[null,null,null,null,"1.","Financial Controls and Capacity (other funding sources)"]
[]
[null,null,null,null,"2.","Memorandum of Understanding for Services"]
[]
[null,null,null,null,"3.","Past Performance Report (copy of last CAPER and closeout reports)"]
[]
[]
[]
[null,null,"V.","Other Attachments (please describe)"]
[]
[null,null,null,null,"1."]
[]
[null,null,null,null,"2."]
[]
[null,null,null,null,"3."]
[]
[null,null,null,null,"4."]
[]
[null,null,null,null,"5."]

{"sheet":"Threshold Requirements ","index":4,"n_rows":22,"n_cols":5,"rows_kept":22,"cut":false,"hidden":false,"merged":[[19,2,19,3],[19,4,19,13],[20,2,20,3],[20,4,20,13],[21,2,21,3],[21,4,21,13],[16,2,16,3],[16,4,16,13],[17,2,17,3],[17,4,17,13],[18,2,18,3],[18,4,18,13],[13,2,13,3],[13,4,13,13],[14,2,14,3],[14,4,14,13],[15,2,15,3],[15,4,15,13],[12,2,12,3],[12,4,12,13],[2,2,2,13],[3,2,3,13],[5,2,5,13],[7,2,7,13],[8,2,8,3],[8,4,8,8],[9,2,9,3],[10,2,10,3],[10,4,10,9],[11,2,11,3],[11,4,11,13]]}
[]
[]
[null,null,"HOME-ARP PROGRAM"]
[null,null,"Supportive Services (SS) and Tenant-Based Rental Assistance (TBRA) "]
[]
[null,null,"Threshold Requirements "]
[]
[null,null,"Applicants must meet all of the following criteria:"]
[null,null,1,null,"The applicant is an eligible applicant."]
[null,null,2,null,"The applicant is registered with sam.gov and provides a unique entity identifier (UEI)."]
[null,null,3,null,"The application is fully completed."]
[null,null,4,null,"Nonprofit must submit proof of good standing with the Secretary of State for Mississippi."]
[null,null,5,null,"Applicants must not have any unresolved audit or monitoring findings associated with the programs managed by MHC or HUD. "]
[null,null,6,null,"Applicants must disclose any loan or grant received from HUD or MHC for which HUD or MHC has issued a letter of findings associated with use of an MHC operated program. Applicants must provide evidence that findings have been resolved. MHC may disqualify the applicant from consideration in funding based on this information. Findings may include, but are not limited to, failing to submit required reports."]
[null,null,7,null,"The applicant must disclose all other grants and funding sources used to support activities and staff. "]
[null,null,8,null,"The applicant must have experience in providing services to the qualified population. "]
[null,null,9,null,"Interested organizations must provide proof of financial viability. While this is an open solicitation, preference will be given to projects that exhibit a collaborative effort among different service providers."]
[null,null,10,null,"The applicant must have program-specific audit if they expended $750,000 or more in Federal awards during the last fiscal year (CFR §200.501)."]
[null,null,11,null,"The applicant must be able to provide their audits, financial statements, and tax forms (IRS 990) for the last three years."]
[null,null,12,null,"Homeless participation.  If a sub-recipient is unable to meet the participation of homeless individuals’ requirement in section 416(d) of the McKinney-Vento Act, the sub-recipient need not obtain approval of a formal waiver so long as the sub-recipient develops a plan to consult with homeless or formerly homeless individuals in considering and making policies and decisions regarding any facilities, services or other assistance that receive HOME-ARP funding."]
[null,null,13,null,"The applicant must disclose if they received any grants from MHC or HUD for which MHC or HUD has de-obligated part or all of the grant."]
[null,null,14,null,"Current or potential partnership with Developers. "]

{"sheet":"Applicant Info","index":5,"n_rows":131,"n_cols":17,"rows_kept":131,"cut":false,"hidden":false,"merged":[[114,3,114,5],[114,6,114,9],[114,10,114,16],[115,3,115,5],[115,6,115,9],[115,10,115,16],[112,3,112,5],[112,6,112,9],[112,10,112,16],[113,3,113,5],[113,6,113,9],[113,10,113,16],[110,3,110,5],[110,6,110,9],[110,10,110,16],[111,3,111,5],[111,6,111,9],[111,10,111,16],[108,3,108,5],[108,6,108,9],[108,10,108,16],[109,3,109,5],[109,6,109,9],[109,10,109,16],[106,3,106,5],[106,6,106,9],[106,10,106,16],[107,3,107,5],[107,6,107,9],[107,10,107,16],[104,3,104,5],[104,6,104,9],[104,10,104,16],[105,3,105,5],[105,6,105,9],[105,10,105,16],[102,3,102,5],[102,6,102,9],[102,10,102,16],[103,3,103,5],[103,6,103,9],[103,10,103,16],[95,3,95,5],[95,6,95,9],[95,10,95,12],[95,13,95,15],[99,3,99,16],[101,3,101,5],[101,6,101,9],[101,10,101,16],[93,3,93,5],[93,6,93,9],[93,10,93,12],[93,13,93,15],[94,3,94,5],[94,6,94,9],[94,10,94,12],[94,13,94,15],[91,3,91,5],[91,6,91,9],[91,10,91,12],[91,13,91,15],[92,3,92,5],[92,6,92,9],[92,10,92,12],[92,13,92,15],[89,3,89,5],[89,6,89,9],[89,10,89,12],[89,13,89,15],[90,3,90,5],[90,6,90,9],[90,10,90,12],[90,13,90,15],[87,3,87,5],[87,6,87,9],[87,10,87,12],[87,13,87,15],[88,3,88,5],[88,6,88,9],[88,10,88,12],[88,13,88,15],[85,3,85,5],[85,6,85,9],[85,10,85,12],[85,13,85,15],[86,3,86,5],[86,6,86,9],[86,10,86,12],[86,13,86,15],[72,4,72,10],[80,6,80,7],[83,3,83,16],[84,3,84,5],[84,6,84,9],[84,10,84,12],[64,4,64,16],[66,4,66,7],[66,9,66,10],[67,9,67,10],[68,4,68,7],[70,4,70,7],[51,4,51,7],[51,9,51,10],[52,9,52,10],[53,4,53,7],[55,4,55,7],[57,4,57,10],[33,4,33,7],[33,14,33,16],[35,4,35,9],[44,3,44,16],[49,4,49,16],[24,4,24,7],[24,9,24,10],[25,4,25,16],[27,4,27,7],[27,10,27,16],[29,4,29,7],[29,13,29,16],[23,4,23,7],[23,9,23,10],[14,3,14,16],[15,3,15,7],[15,10,15,16],[19,4,19,10],[19,12,19,13],[19,14,19,16],[31,13,31,16],[3,3,3,16],[4,3,4,16],[5,3,5,16],[7,2,7,17],[9,2,9,16],[11,4,11,6],[21,4,21,7],[21,9,21,10],[22,4,22,7],[22,9,22,10]]}
[]
[]
[]
[null,null,null,"MISSISSIPPI HOME CORPORATION"]
[null,null,null,"735 Riverside Drive |  Jackson  |  MS  |  39056"]
[null,null,null,"HOME-ARP APPLICATION"]
[]
[null,null,"Supportive Services and Tenant Based Rental Assistance"]
[]
[null,null,"I.   APPLICANT INFORMATION"]
[]
[null,null,null,"Application Year:","FY 2024 ",null,null,null,null,null,"Select one:"]
[null,null,null,null,"HOME-ARP Supportive Services & TBRA"]
[]
[]
[null,null,null,"What CoC areas do your program cover. Select all that apply:\n\n      Central CoC\n      BoS CoC\n      Open Doors Homeless Coalition "]
[]
[null,null,null,"Agency"]
[]
[null,null,null,"Agency Name:",null,null,null,null,null,null,null,null,"Tax ID No.:"]
[]
[null,null,null,"Mailing Address:"]
[null,null,null,null,"Street",null,null,null,null,"City",null,null,"State",null,"Zip",null,"County"]
[null,null,null,"Physical Address:"]
[null,null,null,null,"Street",null,null,null,null,"City",null,null,"State",null,"Zip",null,"County"]
[null,null,null,"Website URL:"]
[]
[null,null,null,"Contact Person:",null,null,null,null,null,"Contact Email:  "]
[]
[null,null,null,"Business Phone:",null,null,null,null,null,null,"        UEI Number:"]
[]
[null,null,null,null,null,null,null,null,null,null,"DUNS Number: "]
[]
[null,null,null,"Business Fax:",null,null,null,null,null,null,"        Fiscal Year End:"]
[]
[null,null,null,"Business Email:"]
[]
[null,null,null,"Enter the total number of years the agency has been in operation:"]
[]
[null,null,null,"Enter the total number of part-time staff employed by the agency:"]
[]
[null,null,null,"Enter the total number of full-time staff employed by the agency:"]
[]
[null,null,null,"Briefly describe the agency's mission:"]
[]
[]
[]
[null,null,null,"Board President (BP)"]
[]
[null,null,null,"BP Name:"]
[]
[null,null,null,"Address:"]
[null,null,null,null,null,null,null,null,null,"City",null,null,"State",null,"Zip",null,"County"]
[null,null,null,"Phone:"]
[]
[null,null,null,"Business Fax:"]
[]
[null,null,null,"Business Email:"]
[]
[null,null,null,"Does the Agency have a current or former homeless person on the board?"]
[]
[]
[null,null,null,"Executive Director (ED)"]
[]
[null,null,null,"ED Name:"]
[]
[null,null,null,"Address:"]
[null,null,null,null,null,null,null,null,null,"City",null,null,"State",null,"Zip",null,"County"]
[null,null,null,"Phone:"]
[]
[null,null,null,"Business Fax:"]
[]
[null,null,null,"Business Email:"]
[]
[]
[null,null,null,"Service Area"]
[]
[null,null,null,"Select all counties that is a part of the Agency's service area:"]
[]
[]
[null,null,null,"Population of Service Area (2020 Census):"]
[]
[null,null,null,"Agency's Key Personnel  "]
[null,null,null,"Please list staff or proposed staff, whose job function plays a key role in the operation of the program.  Indicate if the staff member is a part- or full-time employee, and the number of years the staff person has been in the position.  Attach a resume for each key staff member.   "]
[null,null,null,"Name",null,null,"Title",null,null,null,"Phone",null,null,null,"# of Yrs in this position",null,"Employment"]
[]
[]
[]
[]
[]
[]
[]
[]
[]
[]
[]
[]
[]
[null,null,null,"Partnerships"]
[null,null,null,"Provide a list of organizations that the agency collaborates with to provide comprehensive services.  Attach a copy of the Memorandum of Understanding (MOU) for each partnership listed."]
[]
[null,null,null,"Organization",null,null,"Location",null,null,null,"Services Provided"]
[]
[]
[]
[]
[]
[]
[]
[]
[]
[]
[]
[]
[]
[]
[]
[]
[]
[]
[]
[]
[]
[]
[]
[]
[]
[]
[]
[null,null,null,"Yes"]
[null,null,null,"No"]

{"sheet":"Eligibility","index":6,"n_rows":26,"n_cols":16,"rows_kept":26,"cut":false,"hidden":false,"merged":[[21,3,21,11],[22,3,22,11],[23,3,23,11],[24,3,24,11],[25,3,25,11],[20,3,20,11],[3,1,3,15],[10,3,10,11],[11,3,11,11],[12,3,12,11],[13,3,13,11],[14,3,14,11],[15,3,15,11],[16,3,16,11],[17,3,17,11],[18,3,18,11],[19,3,19,11]]}
[]
[null,{"$f":"'Applicant Info'!D6","v":"HOME-ARP APPLICATION"},null,null,null,null,null,null,null,null,null,null,null,null,null,{"$f":"IF('Applicant Info'!E12=\"\",\"\",'Applicant Info'!E12)","v":"FY 2024 "}]
[]
[null,"II.   ELIGIBILITY"]
[null,null,null,null,null,null,null,null,null,null,null,null,null,null,{"$f":"'Applicant Info'!C8","v":"Supportive Services and Tenant Based Rental Assistance"}]
[]
[null,null,{"$f":"IF('Applicant Info'!E20=\"\",\"\",'Applicant Info'!E20)","v":""}]
[]
[null,null,"Answer the following questions:"]
[null,null,null,null,null,null,null,null,null,null,null,null,"Yes","No","N/A"]
[null,null,"1.","Applicant has a written policy designed to ensure that their facility is free from illegal use, possession, or distribution of drugs or alcohol by its beneficiaries and employees 24 CFR 576.407(a).  Attach documentation."]
[null,null,"2.","Applicant has a written policy to ensure that activities conducted under HOME-ARP conforms to the nondiscrimination and equal opportunity requirements contained in 24 CFR Part  5.105(a).  Attach documentation."]
[null,null,3,"Does the agency make known that the use of their services are available to all on a nondiscriminatory basis, conducts affirmative outreach and ensure effective communication to persons with disabilities and persons with limited English proficiency? 24 CFR Part 91.105. Attach evidence."]
[null,null,"4.","Applicant has policy outlining the confidentiality of victims of domestic violence.  Attach documentation."]
[null,null,"5.","If Applicant is a primarily religious organization, do you agree to provide all eligible activities under this program in a manner that is free from religious influences in accordance with 24 CFR Part 5.109 (e) "]
[null,null,"6."," Is the applicant a nonprofit organization in good standing with the State of Mississippi?"]
[null,null,"7.","Applicant agrees to provide services and/or TBRA assistance to homeless individuals and families and those at risk of homelessness at least for the period during which ARP funds are provided."]
[null,null,"8.","Applicant agrees that all housing, whether Supportive Services or TBRA rental housing units assisted with ARP, will meet the Housing Quality Standards outlined under 24 CFR Part 982.401."]
[null,null,"9.","Applicant agrees that all individuals and families, eligible for ARP will be given an opportunity to receive assistance through Supportive Services and/or TBRA. Applicant agrees to ensure there is no duplication of services or assistance in the use of HOME-ARP.  "]
[null,null,"12.","Applicant involves homeless or formerly homeless individuals in policy-making or decisions regarding its facilities, services, or other ESG funded activities.  Attach Agency's Organization Chart or Board Org Chart identifying individuals with lived experience"]
[null,null,"13.","Is your agency an active member of a Continuum of Care?   Attach documentation."]
[null,null,"14.","Does your agency have the capacity and the available cash flow to effectively administer this grant based on the reimbursement requirements? Attach documentation (verification of other grants, IRS 990, financial statements, tax forms IRS 990)."]
[null,null,15,"Has the agency received any grants from MHC for which MHC has deobligated part or all of the grant or has issued a letter of findings associated with use of an MHC operated program within the last 5-years? If yes to this question, please attached an explination. "]
[null,null,16,"Only for agencyies that previously received any MHC funding for projects. \n\nHas the agency always followed the terms of its contract to include meeting expenditure deadlines and timely RFC submissions? If No to this question, please attach an explanation. "]
[null,null,18,"Does the applicant currently have any unresolved audit or monitoring findings associated with the ESG, ESGCV, or HOPWA programs?"]
[null,null,19,"Has your agency, a non-federal entity, expended $750,000 or more in Federal awards during your fiscal year? If yes, attach a copy of your  single or program-specific audit conducted for that year in accordance with §200.501."]

{"sheet":"Proj Description","index":7,"n_rows":44,"n_cols":12,"rows_kept":44,"cut":false,"hidden":false,"merged":[[3,1,3,11],[8,2,8,10],[9,2,40,10],[42,3,42,9],[43,3,43,9]]}
[]
[null,{"$f":"'Applicant Info'!D6","v":"HOME-ARP APPLICATION"},null,null,null,null,null,null,null,null,null,{"$f":"IF('Applicant Info'!E12=\"\",\"\",'Applicant Info'!E12)","v":"FY 2024 "}]
[]
[null,"III.   PROJECT DESCRIPTION"]
[null,"","Program Plan and Narratives (10 pts.)",null,null,null,null,null,null,null,{"$f":"'Applicant Info'!C8","v":"Supportive Services and Tenant Based Rental Assistance"}]
[]
[null,null,{"$f":"('Applicant Info'!E20)","v":0}]
[]
[null,null,"Describe your proposed project: include project goals, expected outcomes and measures, gaps you intend to fill in the community, and partnerships established to effectively operate the project. Cite specific, local evidence of the needs for the services proposed using PIT data and other available data."]
[]
[]
[]
[]
[]
[]
[]
[]
[]
[]
[]
[]
[]
[]
[]
[]
[]
[]
[]
[]
[]
[]
[]
[]
[]
[]
[]
[]
[]
[]
[]
[]
[]
[null,null,"Board Chair Name/Title: "]
[null,null,"Board Chair Signature: "]

{"sheet":"Proj Info (A)","index":8,"n_rows":30,"n_cols":20,"rows_kept":30,"cut":false,"hidden":false,"merged":[[3,1,3,2],[5,1,5,5]]}
[]
[null,{"$f":"'Applicant Info'!D6","v":"HOME-ARP APPLICATION"},null,null,null,{"$f":"'Applicant Info'!E12","v":"FY 2024 "}]
[]
[null,"IV.  PROJECT INFO (Section A)",null,null,null,null,null,null,null,null,null,null,null,null,null,null,null,null,null,0]
[null,null,null,null,null,"Supportive Services  "]
[null,"The following activities are supportive services activities eligible under the McKinney-Vento Act and ESG Homeless Prevension Supportive Services. \n\n "]
[null,null,"Identify activities that you propose to provide using HOME-ARP funds."]
[null,null,"SEC.425.[42 u.s.c. 11385]","Yes","No","N/A"]
[null,null,"Child Care"]
[null,null,"The costs of child care for program participants, including providing meals and snacks, and comprehensive and coordinated developmental activities, are eligible. The child care center must be licensed\nby the jurisdiction in which it operates in order for its costs to be eligible. The following conditions also apply: \n     - Children must be under the age of 13 unless the children have a disability.\n     - Children with a disability must be under the age of 18. "]
[null,null,"Education Services"]
[null,null,"The costs of improving knowledge and basic educational skills are eligible costs including: \n     - Instruction or training in consumer education, health education, substance abuse prevention, literacy, English   as a Second Language, and General Educational Development (GED).\n     - Screening, assessment, and testing; individual or group instruction; tutoring; provision of books, supplies, and instructional material; counseling; and referral to community resources."]
[null,null,"Employment Assistance and Job Training"]
[null,null,"The costs of establishing and/or operating employment assistance and job training programs are eligible, including classroom, online and/or computer instruction, on-the-job instruction, services that assist individuals in securing employment, acquiring learning skills, and/or increasing earning potential. The cost of providing reasonable stipends to program participants in employment assistance and job training programs is also an eligible cost.\n\n     - Learning skills include those skills that can be used to secure and retain a job, including the acquisition of  vocational licenses and/or certificates.\n     - Services that assist individuals in securing employment consist of:\n          • Employment screening, assessment, or testing;\n          • Structured job skills and job-seeking skills;\n          • Special training and tutoring, including literacy training and prevocational training;\n          • Books and instructional material;\n          • Counseling or job coaching; and\n          • Referral to community resources. "]
[null,null,"Food"]
[null,null,"The cost of providing meals or groceries to program participants is eligible."]
[null,null,"Housing Search and Counseling Services"]
[null,null,"Costs of assisting eligible program participants to locate, obtain, and retain suitable housing are eligible. Services are:\n     - Development of an action plan for locating housing; \n     - Housing search;\n     - Tenant counseling;\n     - Securing utilities;\n     - Making moving arrangements;\n     - Outreach to and negotiation with owners;\n     - Assistance submitting rental applications and understanding leases;\n     - Assessment of housing for compliance with HOME-ARP requirements for TBRA assistance in Section VI.C of this Notice and financial assistance for short-term and medium-term rental payments provided under Section VI.D.4.c.i.(R) below;\n     - Assistance obtaining utilities; and\n     - Tenant counseling;\n     - Mediation with property owners and landlords on behalf of eligible program participants;\n     - Payment of rental application fees;\n     - Other Housing counseling costs, as defined in 24 CFR 5.100, funded with or provided in connection with grant funds must be carried out in accordance with 24 CFR 5.111.\n\nPlease Note: When subrecipients provide housing services to eligible persons that are incidental to a larger set of holistic case management services, these services do not meet the definition of Housing counseling, as defined in 24 CFR 5.100, and therefore are not required to be carried out in accordance with the certification requirements of 24 CFR 5.111."]
[null,null,"Life Skills Training"]
[null,null,"The costs of teaching critical life management skills that may never have been learned or have been lost during the course of physical or mental illness, domestic violence, dating violence, sexual assault, stalking, human trafficking, substance abuse, and homelessness are eligible. These services must be necessary to assist the program participant to function independently in the community. Life skills training includes:\n\n- the budgeting of resources and money management, household management, conflict management, shopping for food and other needed items, nutrition, the use of public transportation, and parent training"]
[null,null,"Financial Assistance Costs"]
[null,null,"Includes:\n     - Rental application fees\n     - Security deposits\n     - Utility deposits\n     - Payment of rental arrears \n     -Moving Cost\n     - First and last months rent"]
[null,null,"Legal Services"]
[null,null,"Eligible costs are the fees charged by licensed attorneys and by person(s) under the supervision of licensed attorneys, for advice and representation in matters that interfere with a qualifying individual or family's ability to obtain and retain housing.\n\n     - Eligible subject matters are child support; guardianship; paternity; emancipation; legal separation; orders of protection and other legal remedies for victims of domestic violence, dating violence, sexual assault, human trafficking, and stalking; appeal of veterans and public benefit claim denials; landlord-tenant disputes; and the resolution of outstanding criminal warrants; landlord/tenant matters, provided that the services must be necessary to resolve a legal problem that prohibits the program participant from obtaining permanent housing or will likely result in the program participant losing the permanent housing in which the program participant currently resides.\n\n     - Legal services for immigration and citizenship matters and for issues related to mortgages and homeownership are ineligible. Retainer fee arrangements and contingency fee arrangements are prohibited.\n\n     -Services may include client intake, receiving and preparing cases for trial, provision of legal advice, representation at hearings, and counseling.\n\n    - Fees based on the actual service performed (i.e., fee for service) are also eligible, but only if the cost would be less than the cost of hourly fees. Filing fees and other necessary court costs are also eligible. If the subrecipient is a legal services provider and performs the services itself, the eligible costs are the subrecipient's employees' salaries and other costs necessary to perform the services. "]
[null,null,"Transportation"]
[null,null,"Eligible costs are:\n\n     -The costs of program participant's travel on public transportation or in a vehicle provided by thesubrecipient to and from medical care, employment, childcare, or other services eligible under HOME ARP;\n\n     -Mileage allowance for service workers to visit program participants and to carry out housing inspections"]
[null,null,"Outpatient Health Services"]
[null,null,"Eligible costs are the direct outpatient treatment of medical conditions when provided by licensed medical professionals including:\n\n     - Providing an analysis or assessment of a program participant’s health problems and the development of a treatment plan;\n     - Assisting program participants to understand their health needs;\n     - Providing directly or assisting program participants to obtain and utilize appropriate medical treatment;\n     - Preventive medical care and health maintenance services, including inhome health services and emergency medical services;\n     - Provision of appropriate medication;\n     - Providing follow-up services; and\n     - Preventive and non-cosmetic dental care"]
[null,null,"Outreach Services"]
[null,null,"The costs of activities to engage qualified populations for the purpose of providing immediate support and intervention, as well as identifying potential program participants, are eligible. "]

{"sheet":"Proj Info (B)","index":9,"n_rows":31,"n_cols":23,"rows_kept":31,"cut":false,"hidden":false,"merged":[[27,3,27,20],[28,3,28,20],[29,3,29,20],[30,3,30,20],[31,3,31,20],[26,3,26,20],[5,2,5,20],[6,5,6,12],[9,3,9,9],[12,3,12,20],[13,3,24,20]]}
[]
[null,{"$f":"'Applicant Info'!D6","v":"HOME-ARP APPLICATION"},null,null,null,null,null,null,null,null,null,null,null,null,null,null,null,null,null,null,null,null,{"$f":"'Applicant Info'!E12","v":"FY 2024 "}]
[]
[null,"IV.   PROJECT INFORMATION (Section B)"]
[null,null,"Program Plan and Narratives (10 pts)",null,null,null,null,null,null,null,null,null,null,null,null,null,null,null,null,null,{"$f":"Eligibility!O5","v":"Supportive Services and Tenant Based Rental Assistance"}]
[null,null,"The Project Information section, as well as the Project Description, must accurately describe the proposed project and how the requested ARP funds will be used.  Applicants must provide clear and concise answers to all questions."]
[null,null,{"$f":"IF('Applicant Info'!E20=\"\",\"\",'Applicant Info'!E20)","v":""}]
[]
[null,null,"Services"]
[]
[null,null,"1.","What is the average number of clients served annually?"]
[]
[null,null,"2.","Describe your experience with serving low-income populations, including services provided to those experiencing homelessness or at risk of becoming homeless."]
[]
[]
[]
[]
[]
[]
[]
[]
[]
[]
[]
[]
[]
[null,null,"3.","Describe how eligible services identified in Section A will be used to increase housing stability.\nProvide a detailed description."]
[]
[null,null,"4.","Describe your agency's  Employment Services strategies and initiatives with MDoT and other potential employers. Support with a MOU."]
[]
[null,null,"5.","Describe how your organization collaborates with other providers in the community to help clients achieve housing stability through the coordination of services."]

{"sheet":"Proj Info (C)","index":10,"n_rows":37,"n_cols":23,"rows_kept":37,"cut":false,"hidden":false,"merged":[[37,3,37,20],[39,3,39,13],[39,16,39,17],[28,3,28,20],[30,3,30,20],[31,3,31,20],[33,3,33,20],[34,3,34,20],[36,3,36,20],[27,3,27,20],[3,1,3,22],[4,1,4,22],[12,3,12,9],[24,3,24,20],[25,3,25,20]]}
[]
[null,{"$f":"'Applicant Info'!D6","v":"HOME-ARP APPLICATION"},null,null,null,null,null,null,null,null,null,null,null,null,null,null,null,null,null,null,null,null,{"$f":"'Applicant Info'!E12","v":"FY 2024 "}]
[]
[null,"IV.   PROJECT INFO (Section C)"]
[null,"The Project Information section as well as the Project Narrative must accurately describe the proposed project and how the requested ARP funds will be used.  Applicants must provide clear and concise answers to all questions."]
[null,null,"Program Plan and Narratives (10 pts)",null,null,null,null,null,null,null,null,null,null,null,null,null,null,null,null,null,{"$f":"Eligibility!O5","v":"Supportive Services and Tenant Based Rental Assistance"}]
[]
[null,null,{"$f":"IF('Applicant Info'!E20=\"\",\"\",'Applicant Info'!E20)","v":""}]
[]
[null,null,"Qualifying Populations"]
[]
[null,null,null,"Homeless individuals as devined in the McKinney-Vento Homeless Assistance Act."]
[]
[null,null,null,"At risk of homelessness as defined in the McKinney-Vento Homeless Assistance Act."]
[]
[null,null,null,"Fleeing, or attempting to flee domestic violence "]
[]
[null,null,null,"Other populations"]
[null,null,"Project Type"]
[]
[null,null,"A.","Supportive Services Activities"]
[]
[null,null,"1.","What is the average number of persons the program serves annually?"]
[]
[null,null,"2."," Describe how your agency identifies landlords and locates housing units. Include your marketing and outreach efforts towards property developers, Low-Income Tax Credit properties, and HOME development properties to secure housing units."]
[]
[]
[null,null,"3.","Describe how you use resources within the community to lower barriers to accessing permanent housing."]
[]
[]
[null,null,"4.","Describe how the proposed program will lead to an increase in the number of individuals who move into permanent housing. Also, explain the housing stabilization practices followed by your agency and the case management services that are provided to assist clients in maintaining permanent housing. Finally, what procedures does the proposed program have in place to prevent future evictions?"]
[]
[]
[null,null,"5.","Explain how direct-client assistance is determined, including frequency and length. Describe exit and discharge strategies."]
[]
[]
[null,null,"6.","HOME-ARP is a multi-level grant to increase affordable housing and stability among those identified in the QP. Different levels in the HOME-ARP grant address:\n\n                                            -Lack of affordable housing through Rental development.\n                                            -The need for rental assistance through TBRA.\n                                            -A way to provide wraparound support through Supportive Servies.\n                                            -The need for shelters through NCS. \n\nDescribe how your agency will use Supportive Services to connect HOME-ARP programs and increase self-sustainability."]

{"sheet":"Proj Info (D)","index":11,"n_rows":26,"n_cols":20,"rows_kept":26,"cut":false,"hidden":false,"merged":[[26,3,26,17],[4,1,4,19],[19,3,19,17],[20,3,20,17],[22,3,22,17],[23,3,23,17],[25,3,25,17]]}
[]
[null,{"$f":"Eligibility!B2","v":"HOME-ARP APPLICATION"},null,null,null,null,null,null,null,null,null,null,null,null,null,null,null,null,null,{"$f":"'Applicant Info'!E12","v":"FY 2024 "}]
[]
[null,"IV.   PROJECT INFO (Section D)"]
[null,"The Project Information section as well as the Project Narrative must accurately describe the proposed project and how the requested ARP funds will be used.  Applicants must provide clear and concise answers to all questions."]
[null,null,null,null,null,null,null,null,null,null,null,null,null,null,null,null,null,"Tenant Based Rental Assistance"]
[]
[null,null,{"$f":"IF('Applicant Info'!E20=\"\",\"\",'Applicant Info'!E20)","v":""}]
[]
[null,null,"TBRA"]
[]
[null,null,null,"Homeless individuals as defined in the McKinney-Vento Homeless Assistance Act."]
[null,null,null,"At risk of homelessness as defined in the McKinney-Vento Homeless Assistance Act."]
[null,null,null,"Fleeing, or attempting to flee domestic violence "]
[null,null,null,"Other populations"]
[null,null,"Project Type"]
[]
[null,null,"A.","Tenant Based Rental Assistance"]
[]
[null,null,"1.","HOME-ARP requires that services be available to all QPs. What is your agency's client selection process? Does your agency manage a waitlist for available programs? "]
[]
[]
[null,null,"2.","Describe your agency's experience in successfully managing housing voucher programs. Include experience, if any, in managing rental portions, voucher termination, and voucher transition."]
[]
[]
[null,null,"3.","HOME-ARP is a multi-level grant to increase affordable housing and stability among those identified in the QP. Different levels in the HOME-ARP grant address:\n                        -Lack of affordable housing through Rental development.\n                        -The need for rental assistance through TBRA.\n                        -A way to provide wraparound support through Supportive Servies.\n                        -The need for shelters through NCS. \n\nDescribe how your agency will use TBRA to connect HOME-ARP programs and increase self-sustainability."]

{"sheet":"Proj Info (E)","index":12,"n_rows":12,"n_cols":21,"rows_kept":12,"cut":false,"hidden":false,"merged":[[3,1,3,20],[4,1,4,20],[11,3,11,18],[12,3,15,18],[19,3,19,13]]}
[]
[null,{"$f":"Eligibility!B2","v":"HOME-ARP APPLICATION"},null,null,null,null,null,null,null,null,null,null,null,null,null,null,null,null,null,null,{"$f":"'Applicant Info'!E12","v":"FY 2024 "}]
[]
[null,"IV.   PROJECT INFO (Section E)"]
[null,"The Project Information section as well as the Project Narrative must accurately describe the proposed project and how the requested ARP funds will be used.  Applicants must provide clear and concise answers to all questions."]
[null,null,"Reporting Ability (5 pts)",null,null,null,null,null,null,null,null,null,null,null,null,null,null,null,{"$f":"Eligibility!O5","v":"Supportive Services and Tenant Based Rental Assistance"}]
[]
[null,null,{"$f":"IF('Applicant Info'!E20=\"\",\"\",'Applicant Info'!E20)","v":""}]
[]
[null,null,"B.  Reporting System"]
[]
[null,null,null,"Provide a detailed description of your agency's reporting policies and systems, including the time frame for reporting, evaluation methods, and the security of data collection systems."]

{"sheet":" Needs Analysis","index":13,"n_rows":22,"n_cols":16,"rows_kept":22,"cut":false,"hidden":false,"merged":[[12,2,13,2],[12,13,12,14],[12,3,12,4],[12,5,12,6],[12,8,13,8],[12,9,13,9],[12,10,13,10],[12,11,12,12],[1,1,1,16],[2,1,2,16],[7,3,8,10],[10,2,10,15],[11,3,11,7],[11,8,11,10],[11,11,11,15]]}
[]
[null,"V.   NEEDS ANALYSIS"]
[null,"Proposed Performance Outcome Measurement should reflect the needs and goals expected to be met during the activity period.  "]
[null,"Need or Extent of Problem (15 pts)",null,null,null,null,null,null,null,null,null,null,null,null,null,{"$f":"Eligibility!O5","v":"Supportive Services and Tenant Based Rental Assistance"}]
[]
[null,{"$f":"IF('Applicant Info'!E20=\"\",\"\",'Applicant Info'!E20)","v":""}]
[null,null,null,"Homeless Needs Inventory and Gap Analysis Table"]
[null,null,null,"Evaluate the size and demographic composition of qualifying populations within the area you propose to serve. Applicants should use current data, including the Point In Time count, Coordinated Entry Data, or other data available through CoCs.\nSee notes in the cell for more information. "]
[]
[]
[null,null,"Homeless"]
[null,null,null,"Current Housing/Shelter Inventory",null,null,null,null,"Homeless Population ",null,null,"Gap Analysis"]
[null,null,"See notes for more information on each category. ","Family",null,"Adults Only",null,"Vets","Homeless Family households (at least 1 child)","Adult households (without child)","Vets (households)","Family",null,"Adults Only",null,"Individuals/Fam"]
[null,null,null,"# of Beds","# of Units","# of Beds","# of Units","# of Beds",null,null,null,"# of Beds","# of Units","# of Beds","# of Units","Vets"]
[null,null,"Emergency Shelter",0,null,0,null,0]
[null,null,"Transitional Housing",0,null,0,null,0]
[null,null,"Permanent Supportive Housing",null,0,null,0,0]
[null,null,"Other Permanent Housing (RRH, SSVF)",null,0,null,0,0]
[null,null,"Sheltered Homeless",null,null,null,null,null,0,0,0]
[null,null,"Unsheltered Homeless",null,null,null,null,null,0,0,0]
[null,null,"At Risk of Homelessness",null,null,null,null,null,0,0,0]
[null,null,"Current Gap",{"$f":"(D15+D16)","v":0},{"$f":"(E15+E16+E17+E18)","v":0},{"$f":"(F15+F16+F17+F18)","v":0},0,0,{"$f":"(I19+I20+I21)","v":0},{"$f":"(J19+J20+J21)","v":0},0,{"$f":"(D22-I22)","v":0},{"$f":"(E22-I22)","v":0},{"$f":"(F22-J22)","v":0},{"$f":"(G22-J22)","v":0},{"$f":"(H22-K22)","v":0}]

{"sheet":"Proposed Goals","index":14,"n_rows":28,"n_cols":20,"rows_kept":28,"cut":false,"hidden":false,"merged":[[13,3,13,8],[14,3,14,7],[15,3,15,8],[20,2,20,18],[22,9,22,10],[22,11,22,12],[22,13,22,14],[22,15,22,16],[22,17,22,18],[3,1,3,19],[4,1,4,19],[9,2,9,19],[11,9,11,10],[11,11,11,12],[11,13,11,14],[11,15,11,16],[11,17,11,18]]}
[]
[null,{"$f":"Eligibility!B2","v":"HOME-ARP APPLICATION"},null,null,null,null,null,null,null,null,null,null,null,null,null,null,null,null,null,{"$f":"'Applicant Info'!E12","v":"FY 2024 "}]
[]
[null,"VI.   PROPOSED GOALS & OUTCOME MEASUREMENTS"]
[null,"Proposed Performance Outcome Measurement should reflect the needs and goals expected to be met during the activity period. "]
[null,null,"Program Goals (10 pts)",null,null,null,null,null,null,null,null,null,null,null,null,null,null,null,{"$f":"Eligibility!O5","v":"Supportive Services and Tenant Based Rental Assistance"}]
[]
[null,null,{"$f":"IF('Applicant Info'!E20=\"\",\"\",'Applicant Info'!E20)","v":""}]
[null,null,"Persons/Households to be Served"]
[null,null,"Enter the expected outcome for the number of persons and/or households (HH) to be served within the grant period for each quarter."]
[]
[null,null,null,null,null,null,null,null,null,"Q1",null,"Q2",null,"Q3",null,"Q4",null,"TOTAL"]
[null,null,null,null,null,null,null,null,null,"Persons","HH","Persons","HH","Persons","HH","Persons","HH","Persons","HH"]
[null,null,null,"Proposed number of individuals and households served from the QP that will be served by support services?",null,null,null,null,null,null,null,null,null,null,null,null,null,{"$f":"J14+L14+N14+P14","v":0},{"$f":"K14+M14+O14+Q14","v":0}]
[null,null,null,"Proposed number of individuals and households served from the QP that will be served by TBRA services?",null,null,null,null,null,null,null,null,null,null,null,null,null,{"$f":"J15+L15+N15+P15","v":0},0]
[null,null,null,"Total Individuals/Households to be served:",null,null,null,null,null,{"$f":"SUM(J14:J15)","v":0},0,0,0,0,0,0,0,0,0]
[]
[]
[]
[null,null,"Income Level of Persons/Households to be Served"]
[null,null,"Enter the expected number or percentage of persons for each income level to be served within the grant period for each quarter."]
[]
[null,null,null,null,null,null,null,null,null,"Q1",null,"Q2",null,"Q3",null,"Q4",null,"TOTAL"]
[null,null,null,null,null,null,null,null,null,"Number","Percent","Number","Percent","Number","Percent","Number","Percent","Number","Percent"]
[null,null,null,null,null,"Extremely Low Income (ELI)",null,null,null,null,null,null,null,null,null,null,null,{"$f":"J25+L25+N25+P25","v":0},0]
[null,null,null,null,null,"Low Income (LI)",null,null,null,null,null,null,null,null,null,null,null,0,0]
[null,null,null,null,null,"Moderate Income (MI)",null,null,null,null,null,null,null,null,null,null,null,0,0]
[null,null,null,null,null,"Total to be served:",null,null,null,{"$f":"SUM(J25:J27)","v":0},{"$f":"SUM(K25:K27)","v":0},0,0,0,0,0,0,0,0]

{"sheet":"Project Budget","index":15,"n_rows":77,"n_cols":12,"rows_kept":77,"cut":false,"hidden":false,"merged":[[71,2,71,5],[72,2,72,5],[60,2,60,6],[61,2,61,6],[62,2,62,6],[63,2,63,6],[64,2,64,6],[69,2,70,6],[59,2,59,6],[44,2,44,6],[45,2,45,6],[46,2,46,6],[47,2,47,6],[48,2,48,6],[52,2,53,6],[54,2,54,6],[55,2,55,6],[56,2,56,6],[57,2,57,6],[58,2,58,6],[43,2,43,6],[28,2,28,6],[29,2,29,6],[30,2,30,6],[31,2,31,6],[32,2,32,6],[35,2,35,6],[38,2,38,6],[39,2,39,6],[40,2,40,6],[41,2,41,6],[42,2,42,6],[27,2,27,6],[4,1,4,11],[8,1,8,10],[10,2,10,11],[12,3,12,4],[13,3,13,4],[19,2,19,6],[22,2,22,6],[23,2,23,6],[24,2,24,6],[25,2,25,6],[26,2,26,6]]}
[]
[null,{"$f":"Eligibility!B2","v":"HOME-ARP APPLICATION"},null,null,null,null,null,null,null,null,null,{"$f":"'Applicant Info'!E12","v":"FY 2024 "}]
[]
[null,"VII.  PROJECT BUDGET "]
[null,"The HOME-ARP funding must be used in coordination with other funding sources and programs to ensure a continuum of services.  The Proposed Budget must provide information on the organization's activities, resources, and expenditures projected for 2023-2024.  Complete as accurately and completely as possible.  Failure to do so may result in a reduction or denial of funding.\n\n *Agencies may not receive the complete amount of requested funding, including indirect costs."]
[null,null,"Financial Controls (8 pts)",null,null,null,null,null,null,null,{"$f":"Eligibility!O5","v":"Supportive Services and Tenant Based Rental Assistance"}]
[]
[null,null,{"$f":"IF('Applicant Info'!E20=\"\",\"\",'Applicant Info'!E20)","v":""}]
[]
[null,null,"Funding Request"]
[null,null,"Below is the list of HOME-ARP Components.  Enter the amount of funds being requested for each HOME-ARP Component and the percentage of staff cost.  Request only those funds expected to be expended over the twelve (12) month contract period.  Round to the nearest dollar ($1.00)."]
[null,null,null,null,null,null,null,null,"Total Amount Requested","Staff Cost out of the total Requested Amount","Percentage of grant for staff cost"]
[null,null,null,null,null,"Supportive Services",null,null,0,0,{"$f":"IF(I13=0,0,J13/I13)","v":0}]
[null,null,null,null,null,"TBRA",null,null,0,0,{"$f":"IF(I14=0,0,J14/I14)","v":0}]
[null,null,null,null,null,"TOTAL HOME-ARP FUNDS REQUEST:",null,null,{"$f":"SUM(I13:I14)","v":0},{"$f":"SUM(J13:J14)","v":0},{"$f":"SUM(K13:K14)","v":0}]
[]
[null,null,"Financial Capacity and Controls"]
[null,null,"Agencies must disclose their operating budget to demonstrate financial ability to manage a HOME-ARP project."]
[]
[null,null,"Non HOME-ARP Federal/State Funds:"]
[]
[null,null,"List all Non-ARP funding  from Federal/State source.",null,null,null,null,"First Quarter","Second Quarter","Third Quarter","Fourth Quarter"]
[null,null,null,null,null,null,null,0,0,0,0]
[null,null,null,null,null,null,null,0,0,0,0]
[null,null,null,null,null,null,null,0,0,0,0]
[null,null,null,null,null,null,null,0,0,0,0]
[null,null,null,null,null,null,null,0,0,0,0]
[null,null,null,null,null,null,null,0,0,0,0]
[null,null,null,null,null,null,null,0,0,0,0]
[null,null,null,null,null,null,null,0,0,0,0]
[null,null,null,null,null,null,null,0,0,0,0]
[null,null,null,null,null,null,null,0,0,0,0]
[null,null,"TOTAL FUNDS:",null,null,null,null,{"$f":"SUM(H15:H32)","v":0},{"$f":"SUM(I23:I32)","v":0},{"$f":"SUM(J23:J32)","v":0},{"$f":"SUM(K23:K32)","v":0}]
[]
[]
[null,null,"Non Home-ARP Private Funds:"]
[]
[null,null,"List all Non-ARP funding  from Private/Cash source.",null,null,null,null,"First Quarter","Second Quarter","Third Quarter","Fourth Quarter"]
[null,null,null,null,null,null,null,0,0,0,0]
[null,null,null,null,null,null,null,0,0,0,0]
[null,null,null,null,null,null,null,0,0,0,0]
[null,null,null,null,null,null,null,0,0,0,0]
[null,null,null,null,null,null,null,0,0,0,0]
[null,null,null,null,null,null,null,0,0,0,0]
[null,null,null,null,null,null,null,0,0,0,0]
[null,null,null,null,null,null,null,0,0,0,0]
[null,null,null,null,null,null,null,0,0,0,0]
[null,null,null,null,null,null,null,0,0,0,0]
[null,null,"TOTAL FUNDS",null,null,null,null,{"$f":"SUM(H39:H48)","v":0},{"$f":"SUM(I39:I48)","v":0},0,0]
[]
[]
[null,null,"In-Kind and Assets Cash Value"]
[null,null,"List all in-kind sources and their cash value"]
[null,null,null,null,null,null,null,"First Quarter","Second Quarter","Third Quarter","Fourth Quarter"]
[null,null,null,null,null,null,null,0,0,0,0]
[null,null,null,null,null,null,null,0,0,0,0]
[null,null,null,null,null,null,null,0,0,0,0]
[null,null,null,null,null,null,null,0,0,0,0]
[null,null,null,null,null,null,null,0,0,0,0]
[null,null,null,null,null,null,null,0,0,0,0]
[null,null,null,null,null,null,null,0,0,0,0]
[null,null,null,null,null,null,null,0,0,0,0]
[null,null,null,null,null,null,null,0,0,0,0]
[null,null,null,null,null,null,null,0,0,0,0]
[null,null,"TOTAL OTHER SOURCES OF FUNDS",null,null,null,null,{"$f":"SUM(H55:H64)","v":0},{"$f":"SUM(I55:I64)","v":0},0,0]
[]
[null,null,"Sound Budget (7 pts)"]
[]
[null,null,"Projected Project Expenses"]
[null,null,"Click on the program activity to access the appropriate expenditure sheet."]
[null,null,null,null,null,null,null,"First Quarter","Second Quarter","Third Quarter","Fourth Quarter"]
[null,null,"Supportive Services",null,null,null,null,{"$f":"'Project Budget SS'!D43","v":0},{"$f":"'Project Budget SS'!E43","v":0},{"$f":"'Project Budget SS'!F43","v":0},{"$f":"'Project Budget SS'!G43","v":0}]
[null,null,"TBRA",null,null,null,null,{"$f":"'Project Budget TBRA'!D19","v":0},{"$f":"'Project Budget TBRA'!E19","v":0},{"$f":"'Project Budget TBRA'!F19","v":0},{"$f":"'Project Budget TBRA'!G19","v":0}]
[]
[null,null,"Total Expenses by Quarter:",null,null,null,null,{"$f":"SUM(H72+H73)","v":0},{"$f":"SUM(I72+I73)","v":0},{"$f":"SUM(J72+J73)","v":0},0]
[]
[null,null,"TOTAL EXPENSES:",null,null,{"$f":"(H75+I75+J75+K75)","v":0}]

{"sheet":"Budget Summary","index":16,"n_rows":39,"n_cols":12,"rows_kept":39,"cut":false,"hidden":false,"merged":[[28,2,28,8],[4,1,4,11],[9,2,9,8],[16,2,16,8],[19,2,19,9],[25,2,25,9]]}
[]
[null,{"$f":"Eligibility!B2","v":"HOME-ARP APPLICATION"},null,null,null,null,null,null,null,null,null,{"$f":"'Applicant Info'!E12","v":"FY 2024 "}]
[]
[null,"VIII.  BUDGET SUMMARY"]
[null,"The HOME-ARP must be used in coordination with other funding sources and programs to ensure a continuum of services.  The Proposed Budget must provide information on the organization's activities, resources, and expenditures projected for 2024-2025.  Complete as accurately and completely as possible.  Failure to do so may result in a reduction or denial of funding.\n\n *Agencies may not receive the complete amount of requested funding, including indirect costs."]
[null,null,"Sound Budget (7 pts)",null,null,null,null,null,null,null,{"$f":"Eligibility!O5","v":"Supportive Services and Tenant Based Rental Assistance"}]
[]
[null,null,{"$f":"IF('Applicant Info'!E20=\"\",\"\",'Applicant Info'!E20)","v":""}]
[]
[null,null,"Anticipated Resources",null,null,null,null,null,null,null,"Amount Projected"]
[]
[null,null,"2024 HOME-ARP (SS & TBRA) Request",null,null,null,null,null,null,null,{"$f":"'Project Budget'!F77","v":0}]
[]
[null,null,"Cash on Hand - Project Budget Deficit",null,null,null,null,null,null,null,0]
[]
[null,null,"Total Non HOME-ARP Federal/State Funds:",null,null,null,null,null,null,null,{"$f":"'Project Budget'!H33+'Project Budget'!I33+'Project Budget'!J33+'Project Budget'!K33","v":0}]
[]
[null,null,"Total Non Home-ARP Private Funds:",null,null,null,null,null,null,null,{"$f":"'Project Budget'!H49+'Project Budget'!I49+'Project Budget'!J49+'Project Budget'!K49","v":0}]
[]
[null,null,"TOTAL PROJECT RESOURCES:",null,null,null,null,null,null,null,{"$f":"SUM(K12+K14+K16+K18)","v":0}]
[]
[null,null,"Total In-Kind and Assets Cash Value",null,null,null,null,null,null,null,{"$f":"'Project Budget'!H65+'Project Budget'!I65+'Project Budget'!J65+'Project Budget'!K65","v":0}]
[]
[null,null,"Cash on Hand - Non-Project Deficit",null,null,null,null,null,null,null,0]
[]
[null,null,"TOTAL RESOURCES:",null,null,null,null,null,null,null,{"$f":"K20+K22+K24","v":0}]
[]
[]
[null,null,"Expenses",null,null,null,null,null,null,null,"Amount Projected"]
[]
[null,null,"TOTAL PROJECT EXPENSES:",null,null,null,"(from Project Budget)",null,null,null,{"$f":"'Project Budget'!F77","v":0}]
[]
[null,null,"Non-Project Related Expenses",null,null,null,null,null,null,null,0]
[]
[null,null,"TOTAL EXPENSES:",null,null,null,null,null,null,null,{"$f":"K31+K33","v":0}]
[]
[null,null,"PROJECT GAP:",null,null,null,null,null,null,null,{"$f":"(K20-K31)","v":0}]
[]
[null,null,"TOTAL BUDGET GAP:",null,null,null,null,null,null,null,{"$f":"K26-K35","v":0}]

{"sheet":"Capacity and Experience","index":17,"n_rows":42,"n_cols":12,"rows_kept":42,"cut":false,"hidden":false,"merged":[[29,3,29,4],[24,2,25,2],[24,3,25,4],[24,5,25,5],[24,6,25,6],[24,9,25,9],[24,10,25,10],[26,3,26,4],[27,3,27,4],[28,3,28,4],[24,7,25,7],[24,8,25,8],[41,4,41,7],[41,9,41,10],[30,3,30,4],[31,3,31,4],[32,3,32,4],[33,3,33,4],[36,2,36,10],[37,2,37,3],[38,2,38,10],[39,2,39,10],[40,4,40,7],[40,9,40,10],[17,2,17,3],[17,4,17,8],[18,2,18,3],[18,4,18,8],[19,2,19,3],[19,4,19,8],[12,2,12,3],[12,4,12,10],[13,2,13,3],[13,4,13,10],[14,2,14,3],[14,4,14,5],[14,7,14,10],[3,1,3,11],[4,1,4,11],[6,2,7,10],[8,2,8,10],[11,2,11,3],[11,4,11,10]]}
[]
[null,{"$f":"Eligibility!B2","v":"HOME-ARP APPLICATION"},null,null,null,null,null,null,null,null,null,{"$f":"'Applicant Info'!E12","v":"FY 2024 "}]
[]
[null,"IX. Capacity and Experience"]
[]
[null,"","Capacity and Experience (20 pts)"]
[null,null,"APPLICANT EXPERIENCE & CAPACITY"]
[]
[null,null,"Mississippi Home Corporation (MHC) gives point preference to applicants whose key staff members (Executive Director, Case Manager and Finance Staff) have previous experience in managing projects with federal, state and local funding sources.  Applicants may receive up to fifteen (15) points based on the number of years of experience. MHC reserves the right to verify all information."]
[]
[null,null,"Applicant"]
[null,null,"Applicant Entity:",null,{"$f":"'Applicant Info'!E20","v":0}]
[null,null,"Business Address:"]
[null,null,"Contact Person:"]
[null,null,"Phone:",null,null,null,"Email:"]
[]
[null,null,"Key Staff Member  (Please complete one form for each Key Staff Person)"]
[null,null,"Name:"]
[null,null,"Title:"]
[null,null,"Role in Proposed Project:"]
[]
[]
[null,null,"Previous Experience"]
[null,null,"List all previous experience that the Key Staff Member has with federal, state, or local projects within the past five (5) years."]
[null,null,"Award Year","Project Source of Funds",null,"Funding Amount","All Funds Expended? (Y/N)","Project Activity","No. of People Served","Closed-Out (Y/N)","Number of findings associated with the grant (if any)"]
[]
[]
[]
[]
[]
[]
[]
[]
[]
[]
[null,null,"Provide a brief narrative of how the above listed experience is relevant to the role you will play in the proposed project:"]
[]
[null,null,"Certification"]
[null,null,"I certify that the above Previous Experience information is being submitted to the Mississippi Home Corporation (MHC) as part of an ARP Application. I certify that all the statements made by me are true, complete, and correct to the best of my knowledge and belief and are made in good faith under the penalties of perjury."]
[null,null,"I acknowledge that this certification will be relied on by MHC, its staff members and/or affiliates in its decision-making process. I authorize MHC to obtain any source information regarding me and my experience relative to the activity listed above."]
[null,null,"Board Chair Name/Title: "]
[null,null,"Board Chair Signature: ",null,null,null,null,null,"Date:"]

{"sheet":"Certification","index":18,"n_rows":17,"n_cols":14,"rows_kept":17,"cut":false,"hidden":false,"merged":[[3,1,3,13],[4,1,4,13],[8,2,8,12],[12,3,12,9],[14,4,14,7]]}
[]
[null,{"$f":"Eligibility!B2","v":"HOME-ARP APPLICATION"},null,null,null,null,null,null,null,null,null,null,null,{"$f":"'Applicant Info'!E12","v":"FY 2024 "}]
[]
[null,"X.   CERTIFICATION"]
[]
[null,null,null,null,null,null,null,null,null,null,null,null,{"$f":"Eligibility!O5","v":"Supportive Services and Tenant Based Rental Assistance"}]
[]
[]
[null,null,"The Applicant certifies that all information in this application and all information furnished in support of this application is given for the purpose of obtaining funds under the HOME-ARP Program and is true and complete to the best of the Applicant's knowledge and belief.  The Applicant shall not, in the provisions of services, or in any other manner, discriminate against any person on the basis of race, color, creed, religion, sex, national origin, age, familial status or handicap.  Verification of any of the information contained in this application may be obtained from any source  named herein."]
[]
[null,null,{"$f":"IF('Applicant Info'!E20=\"\",\"\",'Applicant Info'!E20)","v":""}]
[]
[null,null,"By:"]
[]
[null,null,null,"Its:"]
[]
[null,null,null,"Date:"]

{"sheet":"Project Budget SS","index":19,"n_rows":48,"n_cols":9,"rows_kept":48,"cut":false,"hidden":false,"merged":[[47,7,47,8],[3,7,3,8],[6,2,6,7],[12,2,12,7],[29,2,29,7],[42,2,43,2],[42,3,43,3],[42,4,43,4],[42,5,43,5],[42,6,43,6],[42,7,43,7]]}
[]
[null,{"$f":"Eligibility!B2","v":"HOME-ARP APPLICATION"},null,null,null,null,null,null,{"$f":"'Applicant Info'!E12","v":"FY 2024 "}]
[]
[null,null,null,null,null,null,null,"<<Go Back"]
[]
[]
[null,null,"Projected Project Expenses"]
[null,null,"Supportive Services (42 U.S.C.11360(29);b)"]
[]
[null,null,{"$f":"'Applicant Info'!E20","v":0}]
[null,null,null,null,null,null,"Supportive Services Project Budget:",{"$f":"H43","v":0}]
[null,null,null,"Q-1","Q-2","Q-3","Q-4","Total"]
[null,null,"Case Management Services"]
[null,null,"Housing search & counseling services",null,null,null,null,{"$f":"SUM(D14:G14)","v":0}]
[null,null,"Child Care",null,null,null,null,{"$f":"SUM(D15:G15)","v":0}]
[null,null,"Education Services",null,null,null,null,{"$f":"SUM(D16:G16)","v":0}]
[null,null,"Employment assistance and job training",null,null,null,null,{"$f":"SUM(D17:G17)","v":0}]
[null,null,"Outpatient health services",null,null,null,null,0]
[null,null,"Legal services",null,null,null,null,0]
[null,null,"Life skills training",null,null,null,null,0]
[null,null,"Mental health services",null,null,null,null,0]
[null,null,"Substance abuse treatment services",null,null,null,null,0]
[null,null,"Transportation",null,null,null,null,0]
[null,null,"Food",null,null,null,null,0]
[null,null,"Outreach services ",null,null,null,null,0]
[null,null,"Case management",null,null,null,null,0]
[null,null,"Mediation",null,null,null,null,0]
[null,null,"Landlord/Tenant /Liaison",null,null,null,null,0]
[null,null,"Subtotal",{"$f":"SUM(D14:D28)","v":0},{"$f":"SUM(E14:E28)","v":0},0,0,0]
[null,null,"Housing Financial Assistance Cost"]
[null,null,"Rental application fees",null,null,null,null,{"$f":"SUM(D31:G31)","v":0}]
[null,null,"Security deposits",null,null,null,null,{"$f":"SUM(D32:G32)","v":0}]
[null,null,"Last month's rent",null,null,null,null,{"$f":"SUM(D33:G33)","v":0}]
[null,null,"Utility Payment ",null,null,null,null,0]
[null,null,"Utility Deposit ",null,null,null,null,0]
[null,null,"Utility Arrears",null,null,null,null,0]
[null,null,"Rent Payment",null,null,null,null,0]
[null,null,"Rental Arrears",null,null,null,null,0]
[null,null,"Moving Cost",null,null,null,null,0]
[null,null,"First and Last month's rent",null,null,null,null,0]
[null,null,"Rent",null,null,null,null,0]
[null,null,"Subtotal",{"$f":"SUM(D31:D41)","v":0},{"$f":"SUM(E31:E41)","v":0},0,0,0]
[null,null,"BUDGET TOTALS",{"$f":"D29+D42","v":0},{"$f":"E29+E42","v":0},0,0,{"$f":"H29+H42","v":0}]
[]
[]
[]
[]
[null,null,null,null,null,null,null,"<<Go Back"]

{"sheet":"Project Budget TBRA","index":20,"n_rows":22,"n_cols":8,"rows_kept":22,"cut":false,"hidden":false,"merged":[[21,7,21,8],[1,1,1,2],[1,7,1,8],[3,7,3,8],[6,2,6,7],[12,2,12,7]]}
[]
[null,{"$f":"Eligibility!B2","v":"HOME-ARP APPLICATION"},null,null,null,null,null,{"$f":"'Applicant Info'!E12","v":"FY 2024 "}]
[]
[null,null,null,null,null,null,null,"<<Go Back"]
[]
[]
[null,null,"Projected Project Expenses"]
[null,null,"Tenant Based Rental Assistance"]
[]
[null,null,{"$f":"'Applicant Info'!E20","v":0}]
[null,null,null,null,null,null,"TBRA Project Budget:",{"$f":"(H19)","v":0}]
[null,null,null,"Q-1","Q-2","Q-3","Q-4","Total"]
[null,null,"Financial Assistance Costs"]
[null,null,"TBRA rental assistance",null,null,null,null,{"$f":"SUM(D14:G14)","v":0}]
[null,null,"Security deposit",null,null,null,null,{"$f":"SUM(D15:G15)","v":0}]
[null,null,"Utility deposit",null,null,null,null,{"$f":"SUM(D16:G16)","v":0}]
[null,null,"Housing inspection",null,null,null,null,{"$f":"SUM(D17:G17)","v":0}]
[null,null,"Administration of TBRA",null,null,null,null,{"$f":"SUM(D18:G18)","v":0}]
[null,null,"Total",{"$f":"SUM(D14:D18)","v":0},0,0,0,{"$f":"SUM(H14:H18)","v":0}]
[]
[]
[null,null,null,null,null,null,null,"<<Go Back"]

{"sheet":"Factors.","index":21,"n_rows":88,"n_cols":22,"rows_kept":88,"cut":false,"hidden":true,"merged":[]}
[]
[]
[]
[null,"activity_type",null,null,null,null,"Counties",null,null,null,"employment",null,null,null,"support_docs",null,null,null,null,"app_yr",null,"yn"]
[]
[null,"Emergency Shelter",null,null,null,null,1,null,null,null,"Part-time",null,null,null,"Commitment Letter",null,null,null,null,2023,null,"Yes"]
[null,"Street Outreach",null,null,null,null,{"$f":"G6+1","v":2},"Adams",null,null,"Full-Time",null,null,null,"Award Letter",null,null,null,null,2024,null,"No"]
[null,"Rapid-Re-housing",null,null,null,null,3,"Alcorn",null,null,null,null,null,null,"Bank Statement"]
[null,"Homelessness Prevention",null,null,null,null,4,"Amite",null,null,null,null,null,null,"Other (Explain in Project Narrative)"]
[null,"HMIS",null,null,null,null,5,"Attala"]
[null,null,null,null,null,null,6,"Benton"]
[null,null,null,null,null,null,7,"Bolivar"]
[null,null,null,null,null,null,8,"Calhoun"]
[null,null,null,null,null,null,9,"Carroll"]
[null,null,null,null,null,null,10,"Chickasaw"]
[null,null,null,null,null,null,11,"Choctaw"]
[null,null,null,null,null,null,12,"Claiborne"]
[null,null,null,null,null,null,13,"Clarke"]
[null,null,null,null,null,null,14,"Clay"]
[null,null,null,null,null,null,15,"Coahoma"]
[null,null,null,null,null,null,16,"Copiah"]
[null,null,null,null,null,null,17,"Covington"]
[null,null,null,null,null,null,18,"DeSoto"]
[null,null,null,null,null,null,19,"Forrest"]
[null,null,null,null,null,null,20,"Franklin"]
[null,null,null,null,null,null,21,"George"]
[null,null,null,null,null,null,22,"Greene"]
[null,null,null,null,null,null,23,"Grenada"]
[null,null,null,null,null,null,24,"Hancock"]
[null,null,null,null,null,null,25,"Harrison"]
[null,null,null,null,null,null,26,"Hinds"]
[null,null,null,null,null,null,27,"Holmes"]
[null,null,null,null,null,null,28,"Humphreys"]
[null,null,null,null,null,null,29,"Issaquena"]
[null,null,null,null,null,null,30,"Itawamba"]
[null,null,null,null,null,null,31,"Jackson"]
[null,null,null,null,null,null,32,"Jasper"]
[null,null,null,null,null,null,33,"Jefferson"]
[null,null,null,null,null,null,34,"Jefferson Davis"]
[null,null,null,null,null,null,35,"Jones"]
[null,null,null,null,null,null,36,"Kemper"]
[null,null,null,null,null,null,37,"Lafayette"]
[null,null,null,null,null,null,38,"Lamar"]
[null,null,null,null,null,null,39,"Lauderdale"]
[null,null,null,null,null,null,40,"Lawrence"]
[null,null,null,null,null,null,41,"Leake"]
[null,null,null,null,null,null,42,"Lee"]
[null,null,null,null,null,null,43,"Leflore"]
[null,null,null,null,null,null,44,"Lincoln"]
[null,null,null,null,null,null,45,"Lowndes"]
[null,null,null,null,null,null,46,"Madison"]
[null,null,null,null,null,null,47,"Marion"]
[null,null,null,null,null,null,48,"Marshall"]
[null,null,null,null,null,null,49,"Monroe"]
[null,null,null,null,null,null,50,"Montgomery"]
[null,null,null,null,null,null,51,"Neshoba"]
[null,null,null,null,null,null,52,"Newton"]
[null,null,null,null,null,null,53,"Noxubee"]
[null,null,null,null,null,null,54,"Oktibbeha"]
[null,null,null,null,null,null,55,"Panola"]
[null,null,null,null,null,null,56,"Pearl River"]
[null,null,null,null,null,null,57,"Perry"]
[null,null,null,null,null,null,58,"Pike"]
[null,null,null,null,null,null,59,"Pontotoc"]
[null,null,null,null,null,null,60,"Prentiss"]
[null,null,null,null,null,null,61,"Quitman"]
[null,null,null,null,null,null,62,"Rankin"]
[null,null,null,null,null,null,63,"Scott"]
[null,null,null,null,null,null,64,"Sharkey"]
[null,null,null,null,null,null,65,"Simpson"]
[null,null,null,null,null,null,{"$f":"G70+1","v":66},"Smith"]
[null,null,null,null,null,null,67,"Stone"]
[null,null,null,null,null,null,68,"Sunflower"]
[null,null,null,null,null,null,69,"Tallahatchie"]
[null,null,null,null,null,null,70,"Tate"]
[null,null,null,null,null,null,71,"Tippah"]
[null,null,null,null,null,null,72,"Tishomingo"]
[null,null,null,null,null,null,73,"Tunica"]
[null,null,null,null,null,null,74,"Union"]
[null,null,null,null,null,null,75,"Walthall"]
[null,null,null,null,null,null,76,"Warren"]
[null,null,null,null,null,null,77,"Washington"]
[null,null,null,null,null,null,78,"Wayne"]
[null,null,null,null,null,null,79,"Webster"]
[null,null,null,null,null,null,80,"Wilkinson"]
[null,null,null,null,null,null,81,"Winston"]
[null,null,null,null,null,null,82,"Yalobusha"]
[null,null,null,null,null,null,83,"Yazoo"]